[Event "*** Titled Tuesday Blitz"]
[Site "Chess.com"]
[Date "2020.11.10"]
[Round "8"]
[White "Brave_spirit12"]
[Black "kai_nov"]
[Result "0-1"]
[WhiteElo "2473"]
[BlackElo "2338"]
[TimeControl "180+1"]
[EndTime "11:33:33 PST"]
[Termination "kai_nov won by checkmate"]

1. e4 {[%clk 0:03:00.9]} 1... c5 {[%clk 0:02:58.2]} 2. c3 {[%clk 0:02:59.8]}
2... d5 {[%clk 0:02:56.2]} 3. exd5 {[%clk 0:02:59.1]} 3... Qxd5 {[%clk
0:02:55.9]} 4. Nf3 {[%clk 0:02:58.7]} 4... Nc6 {[%clk 0:02:55.3]} 5. Be2 {[%clk
0:02:58.3]} 5... e5 {[%clk 0:02:50.3]} 6. d3 {[%clk 0:02:56.2]} 6... Nf6 {[%clk
0:02:48.2]} 7. O-O {[%clk 0:02:55.7]} 7... Be7 {[%clk 0:02:45.3]} 8. Na3 {[%clk
0:02:52.8]} 8... O-O {[%clk 0:02:42.1]} 9. Re1 {[%clk 0:02:47.8]} 9... Bg4
{[%clk 0:02:33.3]} 10. Nc4 {[%clk 0:02:45.2]} 10... Rfe8 {[%clk 0:02:29.6]} 11.
Ne3 {[%clk 0:02:43.7]} 11... Qd6 {[%clk 0:02:09.4]} 12. Nxg4 {[%clk 0:02:39.5]}
12... Nxg4 {[%clk 0:02:09]} 13. Bg5 {[%clk 0:02:37.5]} 13... Nxh2 {[%clk
0:01:57.9]} 14. Kxh2 {[%clk 0:02:14.6]} 14... e4+ {[%clk 0:01:56.7]} 15. Kg1
{[%clk 0:02:09]} 15... exf3 {[%clk 0:01:56]} 16. Bxe7 {[%clk 0:02:04.7]} 16...
Rxe7 {[%clk 0:01:10.2]} 17. Bxf3 {[%clk 0:02:00.7]} 17... Ne5 {[%clk 0:01:09.8]}
18. Be4 {[%clk 0:01:59.2]} 18... Rae8 {[%clk 0:01:06.8]} 19. Qa4 {[%clk
0:01:51.7]} 19... a6 {[%clk 0:00:59]} 20. Rad1 {[%clk 0:01:37.3]} 20... g6
{[%clk 0:00:51.2]} 21. d4 {[%clk 0:01:29]} 21... Ng4 {[%clk 0:00:47.8]} 22. g3
{[%clk 0:00:27.4]} 22... Rxe4 {[%clk 0:00:22]} 23. Rxe4 {[%clk 0:00:26.4]} 23...
Rxe4 {[%clk 0:00:21.9]} 24. dxc5 {[%clk 0:00:27]} 24... Qe5 {[%clk 0:00:18.7]}
25. Qd7 {[%clk 0:00:20.5]} 25... Re1+ {[%clk 0:00:17.2]} 26. Rxe1 {[%clk
0:00:05.7]} 26... Qxe1+ {[%clk 0:00:17]} 27. Kg2 {[%clk 0:00:06.6]} 27... Qxf2+
{[%clk 0:00:17.2]} 28. Kh3 {[%clk 0:00:07.2]} 28... h5 {[%clk 0:00:14.8]} 29.
Kh4 {[%clk 0:00:04.6]} 29... Qf6+ {[%clk 0:00:12.9]} 30. Kh3 {[%clk 0:00:04.7]}
30... Kg7 {[%clk 0:00:12.5]} 31. Qxb7 {[%clk 0:00:04.5]} 31... Qf2 {[%clk
0:00:11.1]} 32. Qg2 {[%clk 0:00:04.4]} 32... Qxc5 {[%clk 0:00:10.5]} 33. b3
{[%clk 0:00:03]} 33... Qf5 {[%clk 0:00:10.4]} 34. Kh4 {[%clk 0:00:01.9]} 34...
g5+ {[%clk 0:00:09.8]} 35. Kxh5 {[%clk 0:00:02.5]} 35... Nf6# {[%clk 0:00:10.2]}
0-1

[Event "*** Titled Tuesday Blitz"]
[Site "Chess.com"]
[Date "2020.11.10"]
[Round "8"]
[White "dosto07"]
[Black "mamonika"]
[Result "0-1"]
[WhiteElo "2310"]
[BlackElo "2056"]
[TimeControl "180+1"]
[EndTime "11:33:33 PST"]
[Termination "mamonika won by checkmate"]

1. e4 {[%clk 0:03:00.9]} 1... e5 {[%clk 0:02:59.3]} 2. Nf3 {[%clk 0:02:58.9]}
2... Nc6 {[%clk 0:02:59.3]} 3. Bb5 {[%clk 0:02:56.2]} 3... a6 {[%clk 0:02:58.9]}
4. Ba4 {[%clk 0:02:56.2]} 4... d6 {[%clk 0:02:57.1]} 5. Bxc6+ {[%clk 0:02:52.3]}
5... bxc6 {[%clk 0:02:56.9]} 6. d4 {[%clk 0:02:53.2]} 6... f6 {[%clk 0:02:51.9]}
7. Nc3 {[%clk 0:02:52.3]} 7... Ne7 {[%clk 0:02:44.1]} 8. Be3 {[%clk 0:02:50.9]}
8... Ng6 {[%clk 0:02:44]} 9. Qe2 {[%clk 0:02:43.5]} 9... Rb8 {[%clk 0:02:39.8]}
10. O-O-O {[%clk 0:02:42]} 10... Be6 {[%clk 0:02:37.2]} 11. h4 {[%clk
0:02:40.8]} 11... h5 {[%clk 0:02:33.2]} 12. dxe5 {[%clk 0:02:38.8]} 12... Nxe5
{[%clk 0:02:26.2]} 13. Nxe5 {[%clk 0:02:36.4]} 13... fxe5 {[%clk 0:02:26.6]} 14.
Qxa6 {[%clk 0:02:31.2]} 14... Qd7 {[%clk 0:02:16.5]} 15. g3 {[%clk 0:02:20.2]}
15... Be7 {[%clk 0:02:14.7]} 16. f4 {[%clk 0:02:20.2]} 16... exf4 {[%clk
0:02:08.2]} 17. gxf4 {[%clk 0:02:19.6]} 17... Bg4 {[%clk 0:02:06.8]} 18. Rde1
{[%clk 0:02:03.3]} 18... Bf6 {[%clk 0:02:00.7]} 19. Qc4 {[%clk 0:01:59.3]} 19...
Qe6 {[%clk 0:01:37.8]} 20. Nd5 {[%clk 0:01:49.2]} 20... Bxb2+ {[%clk 0:01:29.4]}
21. Kd2 {[%clk 0:01:44.4]} 21... cxd5 {[%clk 0:01:22.9]} 22. exd5 {[%clk
0:01:43.3]} 22... Qd7 {[%clk 0:01:19.8]} 23. Bd4+ {[%clk 0:01:38.1]} 23... Kf7
{[%clk 0:01:19]} 24. Re6 {[%clk 0:01:09.5]} 24... Bxd4 {[%clk 0:01:00.8]} 25.
Qxd4 {[%clk 0:01:05.2]} 25... Bxe6 {[%clk 0:00:59.5]} 26. dxe6+ {[%clk
0:01:04.8]} 26... Qxe6 {[%clk 0:00:59.6]} 27. Re1 {[%clk 0:01:04.9]} 27... Qf6
{[%clk 0:00:53.3]} 28. Qd5+ {[%clk 0:00:59.9]} 28... Kf8 {[%clk 0:00:49.1]} 29.
f5 {[%clk 0:00:55.3]} 29... Qf7 {[%clk 0:00:32.5]} 30. Re6 {[%clk 0:00:47.9]}
30... Rh6 {[%clk 0:00:32]} 31. Kd3 {[%clk 0:00:35.7]} 31... Rxe6 {[%clk
0:00:26.1]} 32. fxe6 {[%clk 0:00:35.2]} 32... Qf1+ {[%clk 0:00:23.9]} 33. Kc3
{[%clk 0:00:33.8]} 33... Qa1+ {[%clk 0:00:22.7]} 34. Kd2 {[%clk 0:00:33.7]}
34... Qe5 {[%clk 0:00:20.5]} 35. Qf3+ {[%clk 0:00:32.8]} 35... Kg8 {[%clk
0:00:18.6]} 36. Qf7+ {[%clk 0:00:32.3]} 36... Kh7 {[%clk 0:00:18.6]} 37. e7
{[%clk 0:00:29.9]} 37... Qd4+ {[%clk 0:00:16.2]} 38. Ke2 {[%clk 0:00:28.7]}
38... Qe4+ {[%clk 0:00:16.3]} 39. Kd2 {[%clk 0:00:26.9]} 39... c5 {[%clk
0:00:16.7]} 40. Qxh5+ {[%clk 0:00:21.8]} 40... Kg8 {[%clk 0:00:17]} 41. Qg5
{[%clk 0:00:20.3]} 41... Re8 {[%clk 0:00:16.6]} 42. h5 {[%clk 0:00:19.8]} 42...
Qxe7 {[%clk 0:00:16.5]} 43. Qg6 {[%clk 0:00:17.6]} 43... Qe3+ {[%clk 0:00:16.3]}
44. Kd1 {[%clk 0:00:14]} 44... Qe1# {[%clk 0:00:17.2]} 0-1

[Event "*** Titled Tuesday Blitz"]
[Site "Chess.com"]
[Date "2020.11.10"]
[Round "8"]
[White "Algeriano22"]
[Black "fabianvivasz"]
[Result "1-0"]
[WhiteElo "2704"]
[BlackElo "2401"]
[TimeControl "180+1"]
[EndTime "11:33:34 PST"]
[Termination "Algeriano22 won by checkmate"]

1. e4 {[%clk 0:03:00.9]} 1... c5 {[%clk 0:02:58.4]} 2. Nf3 {[%clk 0:03:00.2]}
2... d6 {[%clk 0:02:58.5]} 3. d4 {[%clk 0:02:59.8]} 3... cxd4 {[%clk 0:02:59.4]}
4. Nxd4 {[%clk 0:03:00.6]} 4... Nf6 {[%clk 0:02:59.7]} 5. Nc3 {[%clk 0:03:01.2]}
5... a6 {[%clk 0:03:00.2]} 6. Be2 {[%clk 0:03:00.9]} 6... e5 {[%clk 0:02:59.9]}
7. Nb3 {[%clk 0:03:01]} 7... Be7 {[%clk 0:03:00.6]} 8. O-O {[%clk 0:03:00.8]}
8... O-O {[%clk 0:03:00.9]} 9. Kh1 {[%clk 0:03:01.4]} 9... b6 {[%clk 0:02:53.8]}
10. Be3 {[%clk 0:02:59.4]} 10... Bb7 {[%clk 0:02:51.7]} 11. f3 {[%clk
0:02:59.8]} 11... Nbd7 {[%clk 0:02:47.6]} 12. a4 {[%clk 0:02:55.6]} 12... Rc8
{[%clk 0:02:42.5]} 13. Rf2 {[%clk 0:02:53.8]} 13... Rc6 {[%clk 0:02:25.7]} 14.
Bf1 {[%clk 0:02:52.7]} 14... Qc7 {[%clk 0:02:24.1]} 15. Rd2 {[%clk 0:02:52.5]}
15... Rc8 {[%clk 0:02:16.2]} 16. Rd3 {[%clk 0:02:37.2]} 16... h6 {[%clk
0:01:38.8]} 17. Nc1 {[%clk 0:02:35.8]} 17... Nc5 {[%clk 0:01:32.2]} 18. Rd2
{[%clk 0:02:35.7]} 18... Ncd7 {[%clk 0:01:18.4]} 19. N1a2 {[%clk 0:02:34.8]}
19... Bf8 {[%clk 0:00:59]} 20. Bf2 {[%clk 0:02:20.1]} 20... Qb8 {[%clk
0:00:51.7]} 21. Nb4 {[%clk 0:02:18.6]} 21... Rxc3 {[%clk 0:00:50]} 22. bxc3
{[%clk 0:02:18.5]} 22... Rxc3 {[%clk 0:00:48.8]} 23. Nxa6 {[%clk 0:02:17.1]}
23... Qa8 {[%clk 0:00:32.1]} 24. Nb4 {[%clk 0:02:13.1]} 24... Qa5 {[%clk
0:00:32.2]} 25. Na2 {[%clk 0:01:45.3]} 25... Ra3 {[%clk 0:00:31.9]} 26. Bb5
{[%clk 0:01:34.9]} 26... Nc5 {[%clk 0:00:22.3]} 27. Bxc5 {[%clk 0:01:33.8]}
27... dxc5 {[%clk 0:00:19.1]} 28. c3 {[%clk 0:01:27.8]} 28... g6 {[%clk
0:00:16.5]} 29. Rb1 {[%clk 0:01:22.3]} 29... Ba6 {[%clk 0:00:15]} 30. Qc1 {[%clk
0:01:20.7]} 30... Rxa4 {[%clk 0:00:04.8]} 31. Bxa4 {[%clk 0:01:19.2]} 31... Qxa4
{[%clk 0:00:05.7]} 32. Rxb6 {[%clk 0:01:16.8]} 32... Kg7 {[%clk 0:00:06.2]} 33.
Rdd6 {[%clk 0:01:08.7]} 33... Bxd6 {[%clk 0:00:05.9]} 34. Rxd6 {[%clk 0:01:08]}
34... Bc4 {[%clk 0:00:06.3]} 35. Rd2 {[%clk 0:00:47.5]} 35... Bxa2 {[%clk
0:00:06.4]} 36. Qa1 {[%clk 0:00:47.3]} 36... Bb3 {[%clk 0:00:06.9]} 37. Qg1
{[%clk 0:00:46.6]} 37... c4 {[%clk 0:00:06.7]} 38. h3 {[%clk 0:00:43]} 38... Nh5
{[%clk 0:00:05.7]} 39. Qc5 {[%clk 0:00:42.7]} 39... Qa1+ {[%clk 0:00:05.3]} 40.
Kh2 {[%clk 0:00:42.2]} 40... Qxc3 {[%clk 0:00:05.9]} 41. Rd8 {[%clk 0:00:40.1]}
41... Nf4 {[%clk 0:00:02.5]} 42. Qf8+ {[%clk 0:00:39.4]} 42... Kf6 {[%clk
0:00:02.9]} 43. Rd6+ {[%clk 0:00:35.5]} 43... Kg5 {[%clk 0:00:02.8]} 44. Qe7+
{[%clk 0:00:35.1]} 44... Kh5 {[%clk 0:00:02.7]} 45. g4# {[%clk 0:00:34.9]} 1-0

[Event "*** Titled Tuesday Blitz"]
[Site "Chess.com"]
[Date "2020.11.10"]
[Round "8"]
[White "Goryachkina"]
[Black "KetiGrant"]
[Result "1-0"]
[WhiteElo "2587"]
[BlackElo "2415"]
[TimeControl "180+1"]
[EndTime "11:33:34 PST"]
[Termination "Goryachkina won on time"]

1. e4 {[%clk 0:02:59.5]} 1... c5 {[%clk 0:02:58.8]} 2. Nf3 {[%clk 0:02:59.7]}
2... Nc6 {[%clk 0:02:58.6]} 3. Bb5 {[%clk 0:02:59.4]} 3... g6 {[%clk 0:02:58.1]}
4. Bxc6 {[%clk 0:02:59.4]} 4... dxc6 {[%clk 0:02:57.6]} 5. d3 {[%clk 0:02:59.8]}
5... Bg7 {[%clk 0:02:57.3]} 6. h3 {[%clk 0:02:59.7]} 6... Nf6 {[%clk 0:02:54.2]}
7. O-O {[%clk 0:02:59.6]} 7... Nd7 {[%clk 0:02:43.2]} 8. Nc3 {[%clk 0:02:58.8]}
8... e5 {[%clk 0:02:35.9]} 9. Be3 {[%clk 0:02:56.3]} 9... h6 {[%clk 0:02:33.8]}
10. Qd2 {[%clk 0:02:44.7]} 10... b6 {[%clk 0:02:33.5]} 11. a4 {[%clk 0:02:43.2]}
11... a5 {[%clk 0:02:32.5]} 12. b3 {[%clk 0:02:28.7]} 12... Nf8 {[%clk
0:02:32.1]} 13. Nh2 {[%clk 0:02:09.9]} 13... Ne6 {[%clk 0:02:25.2]} 14. Ne2
{[%clk 0:02:08.3]} 14... Qe7 {[%clk 0:02:04.9]} 15. Rae1 {[%clk 0:02:06.2]}
15... Ba6 {[%clk 0:01:49.7]} 16. f4 {[%clk 0:02:00.4]} 16... exf4 {[%clk
0:01:45.8]} 17. Nxf4 {[%clk 0:02:00.3]} 17... Nd4 {[%clk 0:01:44.2]} 18. Kh1
{[%clk 0:01:50.2]} 18... O-O-O {[%clk 0:01:43.5]} 19. Nf3 {[%clk 0:01:36.6]}
19... h5 {[%clk 0:01:27]} 20. Nxd4 {[%clk 0:01:30.2]} 20... cxd4 {[%clk
0:01:25.9]} 21. Bg1 {[%clk 0:01:30.3]} 21... g5 {[%clk 0:01:24]} 22. Ne2 {[%clk
0:01:25.4]} 22... g4 {[%clk 0:01:18.4]} 23. Qf4 {[%clk 0:01:16.9]} 23... gxh3
{[%clk 0:01:17]} 24. gxh3 {[%clk 0:01:16.9]} 24... Be5 {[%clk 0:01:01.3]} 25.
Qxf7 {[%clk 0:01:13.6]} 25... Qd6 {[%clk 0:00:44.8]} 26. Qf5+ {[%clk 0:00:24.5]}
26... Kb8 {[%clk 0:00:43.9]} 27. Qg5 {[%clk 0:00:15.6]} 27... Rdg8 {[%clk
0:00:39]} 28. Qd2 {[%clk 0:00:14.9]} 28... Bc8 {[%clk 0:00:32.9]} 29. Nf4 {[%clk
0:00:12.4]} 29... Qd7 {[%clk 0:00:25]} 30. Bh2 {[%clk 0:00:11.4]} 30... Ka7
{[%clk 0:00:21.8]} 31. Rg1 {[%clk 0:00:07.4]} 31... Qe7 {[%clk 0:00:09.2]} 32.
Ng6 {[%clk 0:00:05.3]} 32... Rxg6 {[%clk 0:00:04.9]} 33. Rxg6 {[%clk 0:00:06.2]}
1-0

[Event "*** Titled Tuesday Blitz"]
[Site "Chess.com"]
[Date "2020.11.10"]
[Round "8"]
[White "A-S-00"]
[Black "lelya96"]
[Result "0-1"]
[WhiteElo "2334"]
[BlackElo "2229"]
[TimeControl "180+1"]
[EndTime "11:33:34 PST"]
[Termination "lelya96 won on time"]

1. d4 {[%clk 0:02:57]} 1... d5 {[%clk 0:02:59]} 2. c4 {[%clk 0:02:52.3]} 2... c6
{[%clk 0:02:58.5]} 3. Nf3 {[%clk 0:02:51.9]} 3... Nf6 {[%clk 0:02:57.9]} 4. Nc3
{[%clk 0:02:52.1]} 4... dxc4 {[%clk 0:02:55.7]} 5. a4 {[%clk 0:02:51]} 5... Bf5
{[%clk 0:02:55]} 6. Ne5 {[%clk 0:02:44.8]} 6... Nbd7 {[%clk 0:02:47.6]} 7. Nxc4
{[%clk 0:02:39.2]} 7... Qc7 {[%clk 0:02:47.3]} 8. Qd2 {[%clk 0:02:31]} 8... e5
{[%clk 0:02:44.6]} 9. dxe5 {[%clk 0:02:27.1]} 9... Nd5 {[%clk 0:01:49]} 10. Nxd5
{[%clk 0:01:45.4]} 10... cxd5 {[%clk 0:01:46.9]} 11. Qxd5 {[%clk 0:01:35.9]}
11... Bb4+ {[%clk 0:01:09.9]} 12. Bd2 {[%clk 0:01:33.2]} 12... Bxd2+ {[%clk
0:00:59.3]} 13. Nxd2 {[%clk 0:01:32.3]} 13... Qxe5 {[%clk 0:00:52]} 14. Qxe5+
{[%clk 0:01:24.9]} 14... Nxe5 {[%clk 0:00:51.6]} 15. e4 {[%clk 0:01:24.1]} 15...
Be6 {[%clk 0:00:49.5]} 16. f4 {[%clk 0:01:19.5]} 16... Nc6 {[%clk 0:00:49.1]}
17. Bb5 {[%clk 0:00:58.7]} 17... O-O {[%clk 0:00:42.1]} 18. O-O {[%clk
0:00:52.8]} 18... Nd4 {[%clk 0:00:40.2]} 19. Bd3 {[%clk 0:00:51.8]} 19... Rfd8
{[%clk 0:00:37.2]} 20. f5 {[%clk 0:00:33.2]} 20... Nxf5 {[%clk 0:00:12.6]} 21.
exf5 {[%clk 0:00:32.7]} 21... Rxd3 {[%clk 0:00:12.6]} 22. fxe6 {[%clk
0:00:32.5]} 22... Rxd2 {[%clk 0:00:13]} 23. exf7+ {[%clk 0:00:31.9]} 23... Kf8
{[%clk 0:00:13.3]} 24. Rac1 {[%clk 0:00:26.9]} 24... Rad8 {[%clk 0:00:12.9]} 25.
Rc7 {[%clk 0:00:19.8]} 25... Rxb2 {[%clk 0:00:12.3]} 26. Re1 {[%clk 0:00:15.9]}
26... Rbd2 {[%clk 0:00:12.3]} 27. Rxb7 {[%clk 0:00:14.6]} 27... R2d7 {[%clk
0:00:11]} 28. Re8+ {[%clk 0:00:06.9]} 28... Rxe8 {[%clk 0:00:11]} 29. Rxd7
{[%clk 0:00:05.6]} 29... Re7 {[%clk 0:00:11.4]} 30. Rd8+ {[%clk 0:00:04.4]}
30... Kxf7 {[%clk 0:00:11.9]} 31. Kf2 {[%clk 0:00:04.2]} 31... Re4 {[%clk
0:00:10.4]} 32. Rd7+ {[%clk 0:00:04.2]} 32... Re7 {[%clk 0:00:10.1]} 33. Rxa7
{[%clk 0:00:05.1]} 33... Rxa7 {[%clk 0:00:09.7]} 0-1

[Event "*** Titled Tuesday Blitz"]
[Site "Chess.com"]
[Date "2020.11.10"]
[Round "8"]
[White "Vamostodorecto"]
[Black "keepitcoming"]
[Result "1/2-1/2"]
[WhiteElo "2377"]
[BlackElo "2498"]
[TimeControl "180+1"]
[EndTime "11:33:36 PST"]
[Termination "Game drawn by repetition"]

1. d4 {[%clk 0:02:59.7]} 1... d5 {[%clk 0:02:59.8]} 2. c4 {[%clk 0:03:00]} 2...
e6 {[%clk 0:02:59.8]} 3. Nc3 {[%clk 0:03:00]} 3... c5 {[%clk 0:02:59.7]} 4. cxd5
{[%clk 0:02:58.8]} 4... exd5 {[%clk 0:02:59.1]} 5. Nf3 {[%clk 0:02:55.9]} 5...
Nc6 {[%clk 0:02:54.5]} 6. g3 {[%clk 0:02:54.9]} 6... Nf6 {[%clk 0:02:54]} 7. Bg2
{[%clk 0:02:55.5]} 7... Be7 {[%clk 0:02:54.2]} 8. O-O {[%clk 0:02:56]} 8... O-O
{[%clk 0:02:53.9]} 9. Bg5 {[%clk 0:02:53.9]} 9... c4 {[%clk 0:02:53.8]} 10. Ne5
{[%clk 0:02:52]} 10... Be6 {[%clk 0:02:53.7]} 11. Nxc6 {[%clk 0:02:44.3]} 11...
bxc6 {[%clk 0:02:54.6]} 12. Qc2 {[%clk 0:02:40.9]} 12... h6 {[%clk 0:02:46.6]}
13. Bxf6 {[%clk 0:02:30.3]} 13... Bxf6 {[%clk 0:02:47.5]} 14. Rad1 {[%clk
0:02:28.8]} 14... Qb6 {[%clk 0:02:42.8]} 15. e4 {[%clk 0:02:27.6]} 15... dxe4
{[%clk 0:02:30.9]} 16. Na4 {[%clk 0:02:15.8]} 16... Qb4 {[%clk 0:02:09.4]} 17.
Bxe4 {[%clk 0:02:10.3]} 17... Bd5 {[%clk 0:02:04]} 18. Bf5 {[%clk 0:02:04.1]}
18... Rfd8 {[%clk 0:01:38.7]} 19. Nc5 {[%clk 0:01:55.7]} 19... Bxd4 {[%clk
0:01:30.5]} 20. Rxd4 {[%clk 0:01:40.4]} 20... Qxc5 {[%clk 0:01:30.2]} 21. Rg4
{[%clk 0:01:41]} 21... Rab8 {[%clk 0:01:19.4]} 22. Qc3 {[%clk 0:01:39.2]} 22...
Qf8 {[%clk 0:00:54]} 23. Re1 {[%clk 0:01:37.5]} 23... Rd6 {[%clk 0:00:44.4]} 24.
Re5 {[%clk 0:01:32.5]} 24... g6 {[%clk 0:00:38.1]} 25. Bc2 {[%clk 0:01:27.6]}
25... Qg7 {[%clk 0:00:27.6]} 26. h4 {[%clk 0:01:26.7]} 26... Re6 {[%clk
0:00:24]} 27. Rxe6 {[%clk 0:00:37.9]} 27... Qxc3 {[%clk 0:00:23.7]} 28. bxc3
{[%clk 0:00:36.7]} 28... Bxe6 {[%clk 0:00:24.6]} 29. Rd4 {[%clk 0:00:26.8]}
29... Rb2 {[%clk 0:00:24.8]} 30. Be4 {[%clk 0:00:26.5]} 30... Rxa2 {[%clk
0:00:23.1]} 31. Bxc6 {[%clk 0:00:26.5]} 31... Ra1+ {[%clk 0:00:22.8]} 32. Kg2
{[%clk 0:00:26]} 32... Rc1 {[%clk 0:00:23.2]} 33. Rd8+ {[%clk 0:00:24.6]} 33...
Kg7 {[%clk 0:00:22.8]} 34. Ra8 {[%clk 0:00:25.5]} 34... Rxc3 {[%clk 0:00:21.1]}
35. Rxa7 {[%clk 0:00:25.6]} 35... Rd3 {[%clk 0:00:17.8]} 36. Be4 {[%clk
0:00:23.8]} 36... Rd1 {[%clk 0:00:16.5]} 37. Kf3 {[%clk 0:00:23.1]} 37... h5
{[%clk 0:00:15.3]} 38. Ke2 {[%clk 0:00:22.5]} 38... Rd4 {[%clk 0:00:13.2]} 39.
Ke3 {[%clk 0:00:20]} 39... Rd1 {[%clk 0:00:12.3]} 40. Rc7 {[%clk 0:00:20.3]}
40... Re1+ {[%clk 0:00:11.2]} 41. Kf3 {[%clk 0:00:19.1]} 41... Rc1 {[%clk
0:00:09.6]} 42. Ke3 {[%clk 0:00:18.3]} 42... Re1+ {[%clk 0:00:08.3]} 43. Kf3
{[%clk 0:00:18.3]} 43... Rc1 {[%clk 0:00:08.2]} 44. Ke3 {[%clk 0:00:18.5]} 44...
Re1+ {[%clk 0:00:07.6]} 1/2-1/2

[Event "*** Titled Tuesday Blitz"]
[Site "Chess.com"]
[Date "2020.11.10"]
[Round "8"]
[White "emiliochess"]
[Black "profofchess"]
[Result "1-0"]
[WhiteElo "2289"]
[BlackElo "2408"]
[TimeControl "180+1"]
[EndTime "11:33:36 PST"]
[Termination "emiliochess won on time"]

1. d4 {[%clk 0:03:00.9]} 1... Nf6 {[%clk 0:02:59.9]} 2. Bf4 {[%clk 0:03:01]}
2... c5 {[%clk 0:02:59.3]} 3. e3 {[%clk 0:03:01.1]} 3... Nd5 {[%clk 0:02:56.9]}
4. Bg3 {[%clk 0:02:58.7]} 4... Qb6 {[%clk 0:02:56.6]} 5. Nc3 {[%clk 0:02:43.2]}
5... Nxc3 {[%clk 0:02:56.1]} 6. bxc3 {[%clk 0:02:44.1]} 6... e6 {[%clk
0:02:56.4]} 7. Nf3 {[%clk 0:02:43.6]} 7... Qb2 {[%clk 0:02:53.8]} 8. Rb1 {[%clk
0:02:30.4]} 8... Qxc3+ {[%clk 0:02:53.3]} 9. Qd2 {[%clk 0:02:30.2]} 9... Qxd2+
{[%clk 0:02:52.4]} 10. Nxd2 {[%clk 0:02:31.1]} 10... cxd4 {[%clk 0:02:46.9]} 11.
exd4 {[%clk 0:02:21.3]} 11... Nc6 {[%clk 0:02:46.5]} 12. c3 {[%clk 0:02:19.8]}
12... d6 {[%clk 0:02:16]} 13. Bd3 {[%clk 0:02:19.4]} 13... b6 {[%clk 0:02:13.9]}
14. f4 {[%clk 0:02:15.6]} 14... Bb7 {[%clk 0:02:12.1]} 15. O-O {[%clk
0:02:15.8]} 15... g6 {[%clk 0:02:09]} 16. Ne4 {[%clk 0:02:12.5]} 16... O-O-O
{[%clk 0:01:53.3]} 17. d5 {[%clk 0:01:50.7]} 17... exd5 {[%clk 0:01:44.3]} 18.
Ng5 {[%clk 0:01:49.9]} 18... Rd7 {[%clk 0:01:35.6]} 19. f5 {[%clk 0:01:50.2]}
19... h6 {[%clk 0:01:06.9]} 20. Nh3 {[%clk 0:01:30.9]} 20... Ne5 {[%clk
0:00:52]} 21. Bxe5 {[%clk 0:01:21.4]} 21... dxe5 {[%clk 0:00:52.9]} 22. fxg6
{[%clk 0:01:22.1]} 22... Bc5+ {[%clk 0:00:52]} 23. Kh1 {[%clk 0:01:20.5]} 23...
fxg6 {[%clk 0:00:51.9]} 24. Bxg6 {[%clk 0:01:18.4]} 24... Rg7 {[%clk 0:00:50.6]}
25. Bf5+ {[%clk 0:01:12.4]} 25... Kb8 {[%clk 0:00:49.2]} 26. Rbe1 {[%clk
0:01:12.4]} 26... d4 {[%clk 0:00:28.2]} 27. Be4 {[%clk 0:01:10.8]} 27... dxc3
{[%clk 0:00:26.9]} 28. Bxb7 {[%clk 0:01:08.5]} 28... Kxb7 {[%clk 0:00:27.8]} 29.
Rxe5 {[%clk 0:01:08]} 29... Rc8 {[%clk 0:00:27.3]} 30. Re2 {[%clk 0:01:00.2]}
30... Ba3 {[%clk 0:00:24.8]} 31. Rc2 {[%clk 0:00:59.4]} 31... Rd7 {[%clk
0:00:24.3]} 32. g4 {[%clk 0:00:52.9]} 32... Rd2 {[%clk 0:00:21.8]} 33. Rf2
{[%clk 0:00:53.4]} 33... Rd1+ {[%clk 0:00:19.1]} 34. Kg2 {[%clk 0:00:53.1]}
34... b5 {[%clk 0:00:18.9]} 35. Nf4 {[%clk 0:00:51.2]} 35... a5 {[%clk
0:00:17.5]} 36. Ne2 {[%clk 0:00:43.3]} 36... b4 {[%clk 0:00:17]} 37. Rf7+ {[%clk
0:00:25]} 37... Rc7 {[%clk 0:00:16.1]} 38. Rxc7+ {[%clk 0:00:23.5]} 38... Kxc7
{[%clk 0:00:17]} 39. Nxc3 {[%clk 0:00:23.9]} 39... Rc1 {[%clk 0:00:10.5]} 40.
Nb5+ {[%clk 0:00:20.3]} 40... Kb6 {[%clk 0:00:08.3]} 41. Nxa3 {[%clk 0:00:21]}
41... Ra1 {[%clk 0:00:03.4]} 42. Nc4+ {[%clk 0:00:20.4]} 42... Kb5 {[%clk
0:00:03.9]} 43. h3 {[%clk 0:00:20.6]} 43... a4 {[%clk 0:00:02.7]} 44. Nd2 {[%clk
0:00:20.8]} 44... a3 {[%clk 0:00:01.1]} 45. h4 {[%clk 0:00:20.8]} 45... Rd1
{[%clk 0:00:01.1]} 46. Nb3 {[%clk 0:00:20.9]} 1-0